bitfinex-derivatives/quotes_BNBF0:USTF0_20241230
["timestamp","ask_amount","ask_price","bid_price","bid_amount"]
[1735578937342,0.9108521,696.9,696.51,1.07259871]
[1735578937541,0.9108521,696.89,696.51,1.07259871]
[1735578937739,0.9108521,696.88,696.51,1.07259871]
[1735578937940,0.9108521,696.87,696.55,1.07259871]
[1735578938338,0.9108521,696.86,696.55,1.07259871]
[1735578938538,0.9108521,696.85,696.55,1.07259871]
[1735578938935,0.9108521,696.84,696.55,1.07259871]
[1735578939141,0.9108521,696.83,696.55,1.07259871]
[1735578939641,1.49869725,697.03,696.55,1.07259871]
[1735578939840,1.49869725,697.03,696.54,1.07259871]
[1735578940039,0.91062711,697.02,696.54,1.07259871]
[1735578940541,0.91062711,697.01,696.54,1.07259871]
[1735578941041,0.91062711,697.0,696.54,1.07259871]
[1735578941438,0.91062711,696.99,696.54,1.07259871]
[1735578941641,0.91062711,696.98,696.54,1.07259871]
[1735578941944,0.91062711,696.97,696.54,1.07259871]
[1735578942338,0.91062711,696.96,696.57,1.07259871]
[1735578942534,0.91062711,696.95,696.57,1.07259871]
[1735578942942,0.91062711,696.94,696.57,1.07259871]
[1735578943138,0.91062711,696.93,696.57,1.07259871]
[1735578943442,0.91062711,696.92,696.58,1.07259871]
[1735578943635,0.91062711,696.91,696.58,1.07259871]
[1735578944038,0.91062711,696.9,696.58,1.07259871]
[1735578944442,0.91062711,696.89,696.6,1.07259871]
[1735578944645,0.91062711,696.88,696.6,1.07259871]
[1735578945038,0.91062711,696.87,696.6,1.07259871]
[1735578945441,0.91062711,696.86,696.61,1.07259871]
[1735578945945,0.91062711,696.85,696.61,1.07259871]
[1735578946147,0.91062711,696.84,696.61,1.07259871]
[1735578946447,0.91062711,696.83,696.66,1.07259871]
[1735578946848,0.91062711,696.82,696.66,1.07259871]
[1735578947147,0.91062711,696.81,696.66,1.07259871]
[1735578947541,0.91062711,696.8,696.66,1.07259871]
[1735578947743,0.91062711,696.79,696.64,1.07259871]
[1735578948045,0.91062711,696.78,696.64,1.07259871]
[1735578948346,0.91062711,696.77,696.64,1.07259871]
[1735578948848,0.91062711,696.76,696.56,1.07259871]
[1735578949043,0.91062711,696.75,696.56,1.07259871]
[1735578949446,0.91062711,696.74,696.56,1.07259871]
[1735578949646,0.91062711,696.74,696.6,1.07259871]
[1735578949842,0.91062711,696.73,696.6,1.07259871]
[1735578950048,0.91062711,696.72,696.6,1.07259871]
[1735578950550,1.49876718,696.99,696.6,1.07259871]
[1735578950748,0.91077255,696.71,696.6,1.07259871]
[1735578950949,0.91077255,696.7,696.6,1.07259871]
[1735578951351,0.91077255,696.69,696.6,1.07259871]
[1735578951550,0.91077255,696.68,696.6,1.07259871]
[1735578951752,1.49876718,696.99,696.47,1.07259871]
[1735578951753,0.91077255,696.67,696.47,1.07259871]
[1735578952157,0.91077255,696.66,696.47,1.07259871]
[1735578952545,0.91077255,696.65,696.47,1.07259871]
[1735578952746,0.91077255,696.65,696.34,1.07259871]
[1735578952951,1.49876718,696.99,696.34,1.07259871]
[1735578952952,0.91077255,696.64,696.34,1.07259871]
[1735578953455,0.91077255,696.63,696.34,1.07259871]
[1735578953753,0.91077255,696.62,696.34,1.07259871]
[1735578953952,0.91077255,696.62,696.29,1.07259871]
[1735578954153,0.91077255,696.61,696.29,1.07259871]
[1735578954453,1.49876718,696.99,696.29,1.07259871]
[1735578954850,0.91049642,696.98,696.29,1.07259871]
[1735578955152,0.91049642,696.97,696.29,1.07259871]
[1735578955349,0.91049642,696.96,696.29,1.07259871]
[1735578955746,0.91049642,696.95,696.29,1.07259871]
[1735578956152,0.91049642,696.94,696.29,1.07259871]
[1735578956352,0.91049642,696.93,696.33,1.07259871]
[1735578956749,0.91049642,696.92,696.33,1.07259871]
[1735578956950,0.91049642,696.91,696.33,1.07259871]
[1735578957356,0.91049642,696.9,696.33,1.07259871]
[1735578957554,0.91049642,696.9,696.34,1.07259871]
[1735578957754,0.91049642,696.89,696.34,1.07259871]
[1735578958150,0.91049642,696.88,696.34,1.07259871]
[1735578958355,0.91049642,696.87,696.34,1.07259871]
[1735578958556,0.91049642,696.87,696.23,1.07259871]
[1735578958856,0.91049642,696.86,696.23,1.07259871]
[1735578959055,0.91049642,696.85,696.23,1.07259871]
[1735578959251,0.91049642,696.84,696.23,1.07259871]
[1735578959457,0.91049642,696.84,696.22,1.07259871]
[1735578959655,0.91049642,696.83,696.22,1.07259871]
[1735578959855,0.91049642,696.82,696.22,1.07259871]
[1735578960355,0.91049642,696.81,696.22,1.07259871]
[1735578960653,0.91049642,696.8,696.28,1.07259871]
[1735578960851,0.91049642,696.79,696.28,1.07259871]
[1735578961250,0.91049642,696.78,696.28,1.07259871]
[1735578961555,0.91049642,696.78,696.3,1.07259871]
[1735578961757,0.91049642,696.77,696.3,1.07259871]
[1735578961956,0.91049642,696.76,696.3,1.07259871]
[1735578962354,0.91049642,696.75,696.3,1.07259871]
[1735578962660,0.91049642,696.74,696.3,1.07259871]
[1735578962859,0.91049642,696.73,696.3,1.07259871]
[1735578963256,0.91049642,696.72,696.3,1.07259871]
[1735578963453,0.91049642,696.71,696.3,1.07259871]
[1735578963658,0.91049642,696.71,696.31,1.07259871]
[1735578963858,1.49892857,696.92,696.31,1.07259871]
[1735578963859,0.91049642,696.7,696.31,1.07259871]
[1735578964456,0.91047804,696.69,696.31,1.07259871]
[1735578964863,0.91047804,696.68,696.31,1.07259871]
[1735578965065,0.91047804,696.67,696.31,1.07259871]
[1735578965283,0.91047804,696.66,696.3,1.07259871]
[1735578965757,0.91047804,696.65,696.3,1.07259871]
[1735578966156,0.91047804,696.64,696.31,1.07259871]
[1735578966561,0.91047804,696.63,696.31,1.07259871]
[1735578966962,0.28692346,697.05,696.31,1.07259871]
[1735578967162,0.9103414,697.04,696.37,1.07259871]
[1735578967361,1.49916534,696.88,696.37,1.07259871]
[1735578967556,0.9103414,696.87,696.37,1.07259871]
[1735578967962,0.9103414,696.86,696.37,1.07259871]
[1735578968263,0.9103414,696.85,696.37,1.07259871]
[1735578968458,0.9103414,696.84,696.37,1.07259871]
[1735578968762,0.9103414,696.84,695.93,1.28711846]
[1735578968763,0.9103414,696.83,696.4,1.07259871]
[1735578969163,0.9103414,696.82,696.4,1.07259871]
[1735578969565,0.9103414,696.81,696.4,1.07259871]
[1735578969760,0.9103414,696.8,696.4,1.07259871]
[1735578969964,0.9103414,696.8,696.39,1.07259871]
[1735578970164,0.9103414,696.79,696.39,1.07259871]
[1735578970357,0.9103414,696.78,696.39,1.07259871]
[1735578970763,0.9103414,696.77,696.39,1.07259871]
[1735578970963,0.9103414,696.76,696.39,1.07259871]
[1735578971367,0.9103414,696.75,696.44,1.07259871]
[1735578971964,0.9103414,696.74,696.44,1.07259871]
[1735578972361,0.9103414,696.73,696.44,1.07259871]
[1735578972662,0.9103414,696.72,696.39,1.07259871]
[1735578972867,0.9103414,696.71,696.39,1.07259871]
[1735578973166,0.9103414,696.7,696.39,1.07259871]
[1735578973362,0.9103414,696.7,696.4,1.07259871]
[1735578973561,0.9103414,696.69,696.4,1.07259871]
[1735578973762,1.49886939,697.03,696.4,1.07259871]
[1735578974266,0.91008905,697.02,696.4,1.07259871]
[1735578974768,0.91008905,697.01,696.37,1.07259871]
[1735578975067,0.91008905,697.0,696.37,1.07259871]
[1735578975266,0.91008905,696.99,696.37,1.07259871]
[1735578975566,0.91008905,696.98,696.37,1.07259871]
[1735578975762,1.49886939,697.03,696.37,1.07259871]
[1735578975763,0.91008905,696.97,696.37,1.07259871]
[1735578976265,0.91008905,696.96,696.41,1.07259871]
[1735578976465,0.91008905,696.95,696.41,1.07259871]
[1735578976767,0.91008905,696.94,696.41,1.07259871]
[1735578977269,0.91008905,696.93,696.46,1.07259871]
[1735578977464,0.91008905,696.92,696.46,1.07259871]
[1735578977967,2.40897458,696.91,696.46,1.07259871]
[1735578978268,2.40897458,696.91,696.48,1.07259871]
[1735578978569,0.91008905,696.9,696.48,1.07259871]
[1735578978867,0.91008905,696.89,696.48,1.07259871]
[1735578979068,0.91008905,696.88,696.48,1.07259871]
[1735578979571,0.91008905,696.87,696.49,1.07259871]
[1735578980070,0.91008905,696.86,696.49,1.07259871]
[1735578980370,0.91008905,696.85,696.49,1.07259871]
[1735578980763,0.91008905,696.84,696.49,1.07259871]
[1735578980964,0.91008905,696.83,696.46,1.07259871]
[1735578981163,0.91008905,696.82,696.46,1.07259871]
[1735578981564,0.91008905,696.81,696.46,1.07259871]
[1735578982070,0.91008905,696.81,696.15,1.07259871]
[1735578982071,0.91008905,696.8,696.48,1.07259871]
[1735578982471,0.91008905,696.79,696.48,1.07259871]
[1735578982869,0.91008905,696.78,696.48,1.07259871]
[1735578983172,0.91008905,696.77,696.51,1.07259871]
[1735578983472,0.91008905,696.76,696.51,1.07259871]
[1735578983772,0.91008905,696.75,696.51,1.07259871]
[1735578984168,0.91008905,696.74,696.52,1.07259871]
[1735578984369,0.91008905,696.73,696.52,1.07259871]
[1735578984869,0.91008905,696.72,696.52,1.07259871]
[1735578985067,0.91008905,696.71,696.52,1.07259871]
[1735578985573,0.91008905,696.7,696.52,1.07259871]
[1735578985773,0.91008905,696.69,696.52,1.07259871]
[1735578986169,0.91008905,696.68,696.52,1.07259871]
[1735578986375,1.49888553,696.91,696.52,1.07259871]
[1735578986376,0.91008905,696.67,696.52,1.07259871]
[1735578986572,0.91008905,696.67,696.44,1.07259871]
[1735578986773,1.49888553,696.91,696.44,1.07259871]
[1735578987672,0.91024723,696.9,696.48,1.07259871]
[1735578988377,1.49888553,696.91,696.48,1.07259871]
[1735578988678,0.9103182,696.9,696.52,1.07259871]
[1735578989280,0.9103182,696.89,696.52,1.07259871]
[1735578989578,0.9103182,696.88,696.52,1.07259871]
[1735578990175,0.9103182,696.87,696.52,1.07259871]
[1735578990379,0.9103182,696.86,696.52,1.07259871]
[1735578990973,0.9103182,696.85,696.52,1.07259871]
[1735578991177,0.9103182,696.84,696.52,1.07259871]
[1735578991680,0.9103182,696.83,696.52,1.07259871]
[1735578991980,0.9103182,696.83,695.85,2.94439791]
[1735578991981,0.9103182,696.82,696.5,1.07259871]
[1735578992380,0.9103182,696.81,696.5,1.07259871]
[1735578992580,0.9103182,696.8,696.5,1.07259871]
[1735578992882,0.9103182,696.79,696.5,1.07259871]
[1735578993286,0.9103182,696.78,696.45,1.07259871]
[1735578993681,1.7856745,697.05,696.45,1.07259871]
[1735578993983,0.91052443,697.04,696.45,1.07259871]
[1735578994485,0.91052443,697.03,696.42,1.07259871]
[1735578994883,0.91052443,697.02,696.42,1.07259871]
[1735578995084,0.91052443,697.01,696.42,1.07259871]
[1735578995381,0.91052443,697.0,696.42,1.07259871]
[1735578995783,0.91052443,696.99,696.49,1.07259871]
[1735578995985,0.91052443,696.98,696.49,1.07259871]
[1735578996388,0.91052443,696.97,696.49,1.07259871]
[1735578996687,0.91052443,696.96,696.49,1.07259871]
[1735578996887,0.91052443,696.95,696.49,1.07259871]
[1735578997280,0.91052443,696.94,696.49,1.07259871]
[1735578997484,0.91052443,696.93,696.49,1.07259871]
[1735578997788,0.91052443,696.92,696.48,1.07259871]
[1735578998086,0.91052443,696.91,696.48,1.07259871]
[1735578998489,0.91052443,696.9,696.48,1.07259871]
[1735578998886,0.91052443,696.89,696.48,1.07259871]
[1735578999083,0.91052443,696.89,696.03,1.28711846]
[1735578999084,0.91052443,696.88,696.53,1.07259871]
[1735578999390,0.91052443,696.87,696.53,1.07259871]
[1735578999892,0.91052443,696.86,696.53,1.07259871]
[1735579000289,0.91052443,696.86,696.54,1.07259871]
[1735579000589,0.91052443,696.85,696.54,1.07259871]
[1735579000785,0.91052443,696.84,696.54,1.07259871]
[1735579000989,0.91052443,696.83,696.55,1.07259871]
[1735579001392,0.91052443,696.82,696.55,1.07259871]
[1735579001691,0.91052443,696.81,696.55,1.07259871]
[1735579001991,0.91052443,696.81,696.32,1.07259871]
[1735579001992,0.91052443,696.8,696.56,1.07259871]
[1735579002184,0.91052443,696.79,696.56,1.07259871]
[1735579002589,0.91052443,696.78,696.56,1.07259871]
[1735579002990,0.91052443,696.77,696.56,1.07259871]
[1735579003287,0.91052443,696.76,696.56,1.07259871]
[1735579003492,0.91052443,696.75,696.53,1.07259871]
[1735579003991,1.49877794,697.03,696.53,1.07259871]
[1735579004391,0.9114225,697.02,696.53,1.07259871]
[1735579004790,0.9114225,697.01,696.54,1.07259871]
[1735579004988,0.9114225,697.0,696.54,1.07259871]
[1735579005393,0.9114225,696.99,696.54,1.07259871]
[1735579005795,0.9114225,696.98,696.54,1.07259871]
[1735579005988,0.9114225,696.97,696.55,1.07259871]
[1735579006192,0.9114225,696.96,696.55,1.07259871]
[1735579006596,0.9114225,696.95,696.55,1.07259871]
[1735579006996,0.9114225,696.94,696.55,1.07259871]
[1735579007197,0.9114225,696.94,696.54,1.07259871]
[1735579007395,0.9114225,696.93,696.54,1.07259871]
[1735579007598,0.9114225,696.92,696.54,1.07259871]
[1735579007896,0.9114225,696.92,696.53,1.07259871]
[1735579008096,0.9114225,696.91,696.53,1.07259871]
[1735579008298,0.9114225,696.9,696.53,1.07259871]
[1735579008698,0.9114225,696.89,696.53,1.07259871]
[1735579008898,0.9114225,696.88,696.53,1.07259871]
[1735579009397,0.9114225,696.87,696.53,1.07259871]
[1735579010000,0.9114225,696.86,696.53,1.07259871]
[1735579010394,0.9114225,696.85,696.57,1.07259871]
[1735579010796,0.9114225,696.84,696.57,1.07259871]
[1735579011200,0.9114225,696.83,696.57,1.07259871]
[1735579011596,0.9114225,696.82,696.57,1.07259871]
[1735579011792,1.49877794,697.03,696.57,1.07259871]
[1735579011793,0.9114225,696.81,696.57,1.07259871]
[1735579011994,0.9114225,696.81,696.36,1.07259871]
[1735579011995,0.9114225,696.8,696.47,1.07259871]
[1735579012398,0.9114225,696.79,696.47,1.07259871]
[1735579012599,0.9114225,696.78,696.47,1.07259871]
[1735579012995,0.9114225,696.77,696.47,1.07259871]
[1735579013396,0.9114225,696.76,696.47,1.07259871]
[1735579013697,0.9114225,696.75,696.47,1.07259871]
[1735579014093,0.9114225,696.74,696.47,1.07259871]
[1735579014291,0.9114225,696.74,696.17,0.75365279]
[1735579014292,0.9114225,696.73,696.45,1.07259871]
[1735579014697,0.9114225,696.72,696.45,1.07259871]
[1735579014900,1.49886939,696.98,696.45,1.07259871]
[1735579015194,1.49886939,696.98,696.51,1.07259871]
[1735579015195,0.91104639,696.97,696.51,1.07259871]
[1735579015495,0.91104639,696.96,696.51,1.07259871]
[1735579016001,0.91104639,696.95,696.51,1.07259871]
[1735579016201,0.91104639,696.94,696.51,1.07259871]
[1735579016398,0.91104639,696.93,696.51,1.07259871]
[1735579016798,0.91104639,696.92,696.51,1.07259871]
[1735579017098,0.91104639,696.91,696.51,1.07259871]
[1735579017498,0.91104639,696.9,696.51,1.07259871]
[1735579017900,0.91104639,696.9,696.22,0.75365279]
[1735579017901,0.91104639,696.89,696.56,1.07259871]
[1735579018098,0.91104639,696.88,696.56,1.07259871]
[1735579018395,0.91104639,696.87,696.56,1.07259871]
[1735579018800,0.91104639,696.86,696.56,1.07259871]
[1735579019401,0.91104639,696.85,696.53,1.07259871]
[1735579019601,0.28692346,697.05,696.53,1.07259871]
[1735579019903,0.91075537,697.04,696.53,1.07259871]
[1735579020304,0.91075537,697.03,696.53,1.07259871]
[1735579020506,0.91075537,697.03,696.58,1.07259871]
[1735579020705,0.91075537,697.02,696.58,1.07259871]
[1735579020901,0.91075537,697.01,696.58,1.07259871]
[1735579021503,0.91075537,697.0,696.58,1.07259871]
[1735579021705,0.91075537,696.99,696.62,1.07259871]
[1735579022002,0.91075537,696.98,696.62,1.07259871]
[1735579022399,0.28692346,697.05,696.62,1.07259871]
[1735579022604,0.91054411,696.97,696.62,1.07259871]
[1735579022805,0.28692346,697.05,696.62,1.07259871]
[1735579022806,0.91054411,696.96,696.62,1.07259871]
[1735579023006,0.91054411,696.96,696.65,1.07259871]
[1735579023300,0.91054411,696.95,696.65,1.07259871]
[1735579023705,0.91054411,696.94,696.65,1.07259871]
[1735579024102,0.28692346,697.05,696.65,1.07259871]
[1735579024103,0.91054411,696.93,696.65,1.07259871]
[1735579024302,0.91054411,696.92,696.65,1.07259871]
[1735579024704,0.91054411,696.91,696.65,1.07259871]
[1735579025000,0.91054411,696.9,696.65,1.07259871]
[1735579025196,0.91054411,696.89,696.65,1.07259871]
[1735579025399,0.91054411,696.88,696.56,1.07259871]
[1735579025599,0.28692346,697.05,696.56,1.07259871]
[1735579025600,0.91054411,696.87,696.56,1.07259871]
[1735579026106,0.91054411,696.86,696.56,1.07259871]
[1735579026507,0.91054411,696.85,696.59,1.07259871]
[1735579026900,0.91054411,696.84,696.59,1.07259871]
[1735579027102,0.91054411,696.83,696.59,1.07259871]
[1735579027503,0.91054411,696.82,696.59,1.07259871]
[1735579027902,0.28692346,697.05,696.29,1.07259871]
[1735579027903,0.91054411,696.81,696.5,1.07259871]
[1735579028098,0.91054411,696.8,696.5,1.07259871]
[1735579028708,0.91054411,696.79,696.5,1.07259871]
[1735579029006,0.91054411,696.78,696.5,1.07259871]
[1735579029408,0.91054411,696.77,696.5,1.07259871]
[1735579029802,0.91054411,696.76,696.53,1.07259871]
[1735579030307,0.91054411,696.75,696.53,1.07259871]
[1735579030699,0.91054411,696.74,696.53,1.07259871]
[1735579030906,0.91054411,696.73,696.53,1.07259871]
[1735579031302,1.49882635,696.92,696.54,1.07259871]
[1735579031303,0.91054411,696.72,696.54,1.07259871]
[1735579031505,0.91054411,696.71,696.54,1.07259871]
[1735579031902,0.91054411,696.7,696.54,1.07259871]
[1735579032307,1.49882635,696.92,696.53,1.07259871]
[1735579032503,0.91096242,696.91,696.53,1.07259871]
[1735579032807,0.91096242,696.9,696.53,1.07259871]
[1735579033207,0.91096242,696.89,696.53,1.07259871]
[1735579033604,0.91096242,696.88,696.53,1.07259871]
[1735579033803,0.91096242,696.88,696.52,1.07259871]
[1735579034009,0.91096242,696.87,696.52,1.07259871]
[1735579034207,0.91096242,696.86,696.52,1.07259871]
[1735579034509,0.91096242,696.85,696.52,1.07259871]
[1735579034808,0.91096242,696.84,696.52,1.07259871]
[1735579035108,0.91096242,696.83,696.52,1.07259871]
[1735579035309,0.91096242,696.83,696.33,1.07259871]
[1735579035310,0.91096242,696.83,696.21,1.07259871]
[1735579035706,0.91096242,696.82,696.21,1.07259871]
[1735579036102,0.91096242,696.81,696.21,1.07259871]
[1735579036306,0.91096242,696.8,696.11,1.07259871]
[1735579036707,0.91096242,696.79,696.11,1.07259871]
[1735579037110,0.91096242,696.78,696.11,1.07259871]
[1735579037310,0.91096242,696.77,696.05,1.07259871]
[1735579037703,0.91096242,696.76,696.05,1.07259871]
[1735579038110,0.91096242,696.75,696.05,1.07259871]
[1735579038611,0.91096242,696.74,696.05,1.07259871]
[1735579038911,0.91096242,696.73,696.09,1.07259871]
[1735579039512,0.91096242,696.72,696.09,1.07259871]
[1735579039914,0.91096242,696.71,696.09,1.07259871]
[1735579040116,0.91096242,696.7,695.96,1.07259871]
[1735579040517,0.91096242,696.69,695.96,1.07259871]
[1735579040715,0.91096242,696.68,695.96,1.07259871]
[1735579041017,0.91096242,696.67,695.96,1.07259871]
[1735579041218,0.91096242,696.67,695.83,1.07259871]
[1735579041410,0.91096242,696.66,695.83,1.07259871]
[1735579041614,0.91096242,696.65,695.83,1.07259871]
[1735579041809,0.91096242,696.64,695.83,1.07259871]
[1735579042417,0.91096242,696.63,695.73,1.07259871]
[1735579042615,0.91096242,696.62,695.73,1.07259871]
[1735579043011,0.91096242,696.61,695.73,1.07259871]
[1735579043216,0.91096242,696.6,695.73,1.07259871]
[1735579043411,0.91096242,696.6,695.7,1.07259871]
[1735579043612,0.91096242,696.59,695.7,1.07259871]
[1735579043813,0.91096242,696.58,695.7,1.07259871]
[1735579044217,0.91096242,696.57,695.7,1.07259871]
[1735579044417,0.91096242,696.56,695.7,1.07259871]
[1735579044818,0.91096242,696.55,695.7,1.07259871]
[1735579045211,0.91096242,696.54,695.7,1.07259871]
[1735579045411,0.91096242,696.53,695.7,1.07259871]
[1735579045818,1.49945602,696.75,695.7,1.07259871]
[1735579046216,0.90817172,696.74,695.7,1.07259871]
[1735579046414,0.90817172,696.73,695.7,1.07259871]
[1735579046816,0.90817172,696.72,695.7,1.07259871]
[1735579047216,0.90817172,696.72,695.98,1.07259871]
[1735579047416,0.90817172,696.71,695.98,1.07259871]
[1735579047819,0.90817172,696.7,695.98,1.07259871]
[1735579048216,0.90817172,696.69,695.98,1.07259871]
[1735579048414,0.90817172,696.69,695.95,1.07259871]
[1735579048721,0.90817172,696.68,695.95,1.07259871]
[1735579048915,0.90817172,696.67,695.95,1.07259871]
[1735579049218,0.90817172,696.66,695.95,1.07259871]
[1735579049615,0.28692346,697.05,695.96,1.07259871]
[1735579049820,1.4995637,696.66,695.96,1.07259871]
[1735579050221,0.90812927,697.04,695.96,1.07259871]
[1735579050420,0.90812927,696.65,695.96,1.07259871]
[1735579050613,0.90812927,696.64,695.96,1.07259871]
[1735579050816,0.90812927,696.64,695.42,0.28759598]
[1735579050817,0.90812927,696.64,695.91,1.07259871]
[1735579051013,0.90812927,696.63,695.91,1.07259871]
[1735579051421,0.90812927,696.62,695.91,1.07259871]
[1735579051622,0.90812927,696.62,695.94,1.07259871]
[1735579051821,2.40781684,696.61,695.94,1.07259871]
[1735579052015,0.90812927,696.6,695.94,1.07259871]
[1735579052421,0.90812927,696.59,695.94,1.07259871]
[1735579052821,0.90812927,696.58,695.94,1.07259871]
[1735579053224,0.90812927,696.57,695.94,1.07259871]
[1735579053418,0.90812927,696.56,695.95,1.07259871]
[1735579053618,1.49968757,696.61,695.95,1.07259871]
[1735579054323,0.90790682,696.6,695.95,1.07259871]
[1735579054824,0.90790682,696.6,695.53,1.28711846]
[1735579054825,0.90790682,696.59,695.94,1.07259871]
[1735579055018,0.90790682,696.58,695.94,1.07259871]
[1735579055220,0.90790682,696.57,695.94,1.07259871]
[1735579055619,0.90790682,696.56,695.94,1.07259871]
[1735579055926,0.90790682,696.55,695.95,1.07259871]
[1735579056123,0.28693169,697.03,695.95,1.07259871]
[1735579056323,1.49946678,696.78,695.95,1.07259871]
[1735579056625,0.28693169,697.03,695.95,1.07259871]
[1735579056819,1.49940756,696.77,696.02,1.07259871]
[1735579057023,0.28693169,697.03,696.02,1.07259871]
[1735579057320,0.9074467,696.76,696.02,1.07259871]
[1735579057527,0.9074467,697.02,696.02,1.07259871]
[1735579057719,0.9074467,697.01,696.02,1.07259871]
[1735579058122,0.9074467,697.0,696.14,1.07259871]
[1735579058325,0.9074467,696.99,696.14,1.07259871]
[1735579058622,0.9074467,696.98,696.14,1.07259871]
[1735579059026,0.9074467,696.97,696.14,1.07259871]
[1735579059229,0.9074467,696.97,695.61,1.28711846]
[1735579059230,0.9074467,696.97,696.18,1.07259871]
[1735579059426,0.9074467,696.96,696.18,1.07259871]
[1735579059621,1.4991169,697.0,696.18,1.07259871]
[1735579059622,0.9074467,696.95,696.18,1.07259871]
[1735579059925,0.9074467,696.94,696.18,1.07259871]
[1735579060323,0.9074467,696.93,696.18,1.07259871]
[1735579060729,0.9074467,696.92,696.24,1.07259871]
[1735579060923,0.9074467,696.91,696.24,1.07259871]
[1735579061323,0.9074467,696.9,696.24,1.07259871]
[1735579061727,0.9074467,696.89,696.24,1.07259871]
[1735579061928,0.9074467,696.88,696.27,1.07259871]
[1735579062330,0.9074467,696.87,696.27,1.07259871]
[1735579062523,0.9074467,696.86,696.27,1.07259871]
[1735579063030,0.9074467,696.85,696.25,1.07259871]
[1735579063227,1.4991169,697.0,696.25,1.07259871]
[1735579063529,0.90737505,696.99,696.25,1.07259871]
[1735579063731,0.90737505,696.98,696.25,1.07259871]
[1735579064026,0.90737505,696.97,696.25,1.07259871]
[1735579064331,0.90737505,696.97,695.52,2.18988905]
[1735579064332,0.90737505,696.96,696.26,1.07259871]
[1735579064723,0.90737505,696.95,696.26,1.07259871]
[1735579065129,0.90737505,696.94,696.26,1.07259871]
[1735579065331,0.90737505,696.93,696.25,1.07259871]
[1735579065728,0.90737505,696.92,696.25,1.07259871]
[1735579065928,0.90737505,696.91,696.25,1.07259871]
[1735579066129,0.90737505,696.9,696.25,1.07259871]
[1735579066527,0.90737505,696.89,696.36,1.07259871]
[1735579066831,0.90737505,696.88,696.36,1.07259871]
[1735579067026,1.4991169,697.0,696.36,1.07259871]
[1735579067433,0.90744844,696.99,696.37,1.07259871]
[1735579067826,0.90744844,696.98,696.37,1.07259871]
[1735579068228,0.90744844,696.97,696.37,1.07259871]
[1735579068829,0.90744844,696.96,696.37,1.07259871]
[1735579069133,0.90744844,696.95,696.37,1.07259871]
[1735579069434,0.90744844,696.95,695.8,2.18988905]
[1735579069435,1.4991169,697.0,696.35,1.07259871]
[1735579069632,0.90753508,696.94,696.35,1.07259871]
[1735579070028,0.90753508,696.93,696.35,1.07259871]
[1735579070328,0.90753508,696.92,696.35,1.07259871]
[1735579070731,0.90753508,696.91,696.35,1.07259871]
[1735579070928,0.90753508,696.9,696.35,1.07259871]
[1735579071127,0.90753508,696.89,696.35,1.07259871]
[1735579071530,1.4991169,697.0,696.35,1.07259871]
[1735579071732,0.90750336,696.99,696.35,1.07259871]
[1735579071931,0.90750336,696.99,696.33,1.07259871]
[1735579072133,1.4991169,697.0,696.33,1.07259871]
[1735579072134,0.90750336,696.98,696.33,1.07259871]
[1735579072333,0.90750336,696.97,696.33,1.07259871]
[1735579072736,1.4991169,697.0,696.33,1.07259871]
[1735579072737,0.90750336,696.96,696.33,1.07259871]
[1735579073130,0.90750336,696.95,696.33,1.07259871]
[1735579073329,0.90750336,696.94,696.33,1.07259871]
[1735579073530,0.90750336,696.93,696.3,1.07259871]
[1735579074037,0.90750336,696.92,696.3,1.07259871]
[1735579074237,0.90750336,696.91,696.3,1.07259871]
[1735579074434,0.90750336,696.91,696.27,1.07259871]
[1735579074638,0.90750336,696.9,696.27,1.07259871]
[1735579075033,0.90750336,696.89,696.27,1.07259871]
[1735579075240,0.90750336,696.88,696.27,1.07259871]
[1735579075632,0.90750336,696.88,696.32,1.07259871]
[1735579075832,0.90750336,696.87,696.32,1.07259871]
[1735579076038,1.4991169,697.0,696.32,1.07259871]
[1735579076238,0.90748001,696.99,696.32,1.07259871]
[1735579076739,0.90748001,696.98,696.3,1.07259871]
[1735579076933,0.90748001,696.97,696.3,1.07259871]
[1735579077132,0.90748001,696.96,696.3,1.07259871]
[1735579077536,0.90748001,696.95,696.3,1.07259871]
[1735579077737,0.90748001,696.95,696.12,1.07259871]
[1735579077738,0.90748001,696.94,696.35,1.07259871]
[1735579078140,0.90748001,696.93,696.35,1.07259871]
[1735579078341,0.90748001,696.92,696.35,1.07259871]
[1735579078841,0.90748001,696.91,696.34,1.07259871]
[1735579079041,0.90748001,696.9,696.34,1.07259871]
[1735579079340,0.90748001,696.89,696.34,1.07259871]
[1735579079540,0.90748001,696.88,696.34,1.07259871]
[1735579080035,0.90748001,696.87,696.32,1.07259871]
[1735579080442,1.4991169,697.0,696.32,1.07259871]
[1735579080942,0.90765154,696.99,696.36,1.07259871]
[1735579081343,0.90765154,696.98,696.36,1.07259871]
[1735579081741,0.90765154,696.97,696.36,1.07259871]
[1735579082042,0.90765154,696.96,696.35,1.07259871]
[1735579082235,0.90765154,696.95,696.35,1.07259871]
[1735579082438,0.90765154,696.94,696.35,1.07259871]
[1735579083040,0.90765154,696.93,696.35,1.07259871]
[1735579083441,0.90765154,696.92,696.3,1.07259871]
[1735579083641,0.90765154,696.91,696.3,1.07259871]
[1735579084043,0.90765154,696.9,696.3,1.07259871]
[1735579084543,0.90765154,696.89,696.3,1.07259871]
[1735579084744,0.90765154,696.89,695.63,2.18988905]
[1735579084745,0.90765154,696.89,696.31,1.07259871]